bitfinex-derivatives/quotes_ETHF0:USTF0_20250329
["timestamp","ask_amount","ask_price","bid_price","bid_amount"]
[1743268650976,3.2078,1801.7,1800.3,5.5512]
[1743268651278,3.2078,1801.4,1801.0,0.01200734]
[1743268651567,51.256,1803.2,1801.0,0.01200734]
[1743268651568,3.2078,1801.6,1801.1,5.5512]
[1743268651960,12.8831,1802.1,1801.1,5.5512]
[1743268651961,4.31851,1801.4,1801.1,17.3084]
[1743268652158,0.00831578,1801.5,1801.2,5.56320734]
[1743268652362,0.00831578,1801.5,1801.2,18.43115734]
[1743268652551,3.2078,1801.8,1801.3,5.5512]
[1743268652753,3.2078,1802.0,1801.4,11.7572]
[1743268653045,3.2078,1802.1,1801.4,17.3084]
[1743268653245,3.2078,1802.3,1801.7,0.01200734]
[1743268653450,3.2078,1802.1,1801.7,0.01200734]
[1743268653655,3.2078,1801.8,1800.7,64.0568]
[1743268653851,3.2078,1801.5,1801.1,5.5512]
[1743268654051,3.2078,1801.5,1801.2,0.00831578]
[1743268654257,4.31853,1801.3,1801.2,0.00831578]
[1743268654750,6.81853,1801.3,1801.2,0.00831578]
[1743268654946,3.2078,1801.3,1801.2,0.00831578]
[1743268655142,4.31853,1801.3,1801.2,0.00831578]
[1743268655345,11.69033,1801.3,1801.2,0.00831578]
[1743268655546,10.5796,1801.3,1800.1,3.2078]
[1743268655846,1.11117,1800.6,1800.3,3.2078]
[1743268656046,3.2078,1800.9,1800.1,3.2078]
[1743268656246,3.2078,1801.0,1800.2,11.47]
[1743268656443,3.2078,1800.6,1800.2,11.47]
[1743268656646,4.31896,1800.6,1800.0,1.11153]
[1743268656848,4.31896,1800.6,1799.9,12.7848]
[1743268656849,3.2078,1800.6,1799.9,12.7848]
[1743268657051,0.00831578,1800.8,1800.0,11.47]
[1743268657250,3.2078,1800.4,1800.0,11.47]
[1743268657457,3.21611578,1800.8,1800.0,11.47]
[1743268657656,1.11143,1800.2,1799.9,3.2078]
[1743268657854,1.11938578,1800.8,1800.1,3.2078]
[1743268658057,1.11935578,1800.8,1800.1,3.2078]
[1743268658255,0.00831578,1800.8,1800.3,1.1113]
[1743268658559,3.2078,1801.6,1800.7,3.2078]
[1743268658750,3.2078,1801.6,1800.8,20.7422]
[1743268658952,3.2078,1802.2,1801.7,1.11043]
[1743268659153,3.2078,1801.9,1801.5,12.25276]
[1743268659357,3.2078,1802.3,1801.5,11.1422]
[1743268659551,4.31793,1802.3,1801.5,14.35]
[1743268659759,0.00831578,1802.1,1801.7,3.21611578]
[1743268659954,0.00831578,1802.1,1801.9,3.2078]
[1743268660253,0.00831578,1802.1,1802.0,21.80349]
[1743268660461,6.41165114,1802.2,1802.1,1.11023]
[1743268660658,1.10941,1803.5,1802.1,54.5058]
[1743268660858,3.2078,1803.4,1802.8,3.2078]
[1743268661055,3.2078,1803.4,1802.8,12.7438]
[1743268661255,3.2078,1803.4,1803.0,1.10962]
[1743268661455,4.31724,1803.4,1802.9,1.10971]
[1743268661651,3.2078,1803.0,1802.3,7.4972]
[1743268661861,3.2078,1802.7,1802.1,54.5058]
[1743268662057,3.2078,1803.0,1802.2,1.11013]
[1743268662260,3.2078,1802.5,1802.1,3.2078]
[1743268662462,3.2078,1802.5,1801.2,0.5552]
[1743268662463,3.2078,1802.2,1801.3,3.2078]
[1743268662765,3.2078,1801.4,1800.3,3.2078]
[1743268662971,3.2078,1801.0,1800.5,3.2078]
[1743268663152,5.97831,1800.9,1800.7,0.00831578]
[1743268663386,3.2078,1801.7,1800.7,57.00811578]
[1743268663729,5.7927,1802.1,1800.7,57.00811578]
[1743268663730,1.11056,1801.6,1801.0,3.2078]
[1743268663882,9.73,1801.8,1801.0,3.2078]
[1743268663883,12.9378,1801.8,1801.0,3.2078]
[1743268664086,4.31843,1801.5,1801.1,11.6908]
[1743268664278,9.73,1801.8,1801.1,11.6908]
[1743268664476,3.2078,1801.6,1801.1,11.6908]
[1743268664739,3.2078,1801.4,1800.7,51.30031578]
[1743268664888,3.2078,1801.1,1800.8,11.6908]
[1743268665090,1.11097,1800.9,1800.8,11.6908]
[1743268665282,3.2078,1801.1,1800.8,11.6908]
[1743268665577,3.2078,1801.1,1800.8,14.8986]
[1743268665777,3.2078,1801.3,1800.8,14.8986]
[1743268666082,3.2078,1801.3,1800.9,11.6908]
[1743268666287,3.2078,1801.3,1800.9,12.80173]
[1743268666485,3.2078,1801.3,1800.9,11.6908]
[1743268666686,4.31855,1801.3,1800.9,11.6908]
[1743268666886,12.9378,1801.5,1801.0,3.2078]
[1743268667093,12.9378,1801.5,1801.1,10.9728]
[1743268667290,3.2078,1801.5,1801.0,10.51886]
[1743268667492,3.2078,1801.5,1800.1,5.55732]
[1743268667493,3.2078,1801.1,1800.1,3.2078]
[1743268667691,3.2078,1801.1,1800.0,51.303]
[1743268667692,3.2078,1800.5,1799.9,7.4972]
[1743268667987,3.2078,1801.1,1800.4,3.2078]
[1743268668181,3.2078,1800.9,1800.5,9.406]
[1743268668385,3.2078,1800.9,1800.1,7.34068375]
[1743268668386,1.1111,1800.7,1800.6,0.00831578]
[1743268668582,0.00831578,1800.9,1800.6,0.00831578]
[1743268668895,0.00831578,1800.9,1800.6,9.43331578]
[1743268669190,0.00831578,1800.9,1800.8,4.31883]
[1743268669579,3.2078,1801.5,1800.8,12.89043835]
[1743268669781,3.2078,1801.5,1800.8,10.39043835]
[1743268669989,3.2078,1801.6,1800.8,10.39043835]
[1743268670184,3.2078,1801.3,1801.0,1.11088]
[1743268670384,1.1111,1800.7,1800.6,0.00831578]
[1743268670578,4.3189,1800.7,1800.6,0.00831578]
[1743268670885,0.00831578,1800.8,1800.7,1.1111]
[1743268671087,0.00831578,1800.8,1800.6,0.00831578]
[1743268671276,4.3189,1800.7,1800.6,0.00831578]
[1743268671482,1.1111,1800.7,1800.6,0.00831578]
[1743268671678,4.3189,1800.7,1800.6,0.00831578]
[1743268672086,1.1111,1800.7,1800.6,0.00831578]
[1743268672292,5.7078,1800.7,1799.8,3.2078]
[1743268672498,3.2078,1798.7,1796.7,3.2078]
[1743268672792,6.98457684,1800.5,1797.6,3.2078]
[1743268672793,11.9109,1798.6,1797.6,3.2078]
[1743268672978,3.2078,1798.7,1797.9,3.2078]
[1743268673202,3.2078,1799.0,1798.7,3.2078]
[1743268673385,3.2078,1798.8,1798.0,7.34467374]
[1743268673621,5.80490358,1798.6,1798.2,3.2078]
[1743268673803,3.2078,1799.3,1799.0,3.2078]
[1743268674102,6.98457684,1801.5,1799.3,3.2078]
[1743268674103,3.2078,1800.0,1799.3,3.2078]
[1743268674388,3.2078,1799.9,1799.4,12.97284667]
[1743268674697,3.2078,1799.6,1799.2,9.76504667]
[1743268674899,0.48321145,1799.8,1799.5,3.2078]
[1743268675186,1.11135,1800.3,1799.8,3.2078]
[1743268675399,3.2078,1799.9,1799.4,0.02452188]
[1743268675588,11.13398837,1800.2,1798.2,3.2078]
[1743268675589,3.2078,1799.7,1799.5,12.97284667]
[1743268675792,6.45279216,1800.2,1799.5,12.97284667]
[1743268675793,3.2078,1799.9,1799.5,0.00833936]
[1743268675990,3.2078,1799.9,1799.8,3.2078]
[1743268676288,3.21613936,1799.9,1799.7,0.01226016]
[1743268676772,0.00833936,1799.9,1799.8,12.97284667]
[1743268677072,3.2078,1800.9,1800.2,3.2078]
[1743268677269,3.2078,1800.9,1800.7,3.2078]
[1743268677466,1.33203125,1800.8,1800.7,6.55724667]
[1743268677668,1.33203125,1800.8,1800.1,3.2078]
[1743268677861,3.2078,1800.2,1799.9,6.55724667]
[1743268678064,3.18333085,1800.2,1800.0,0.01220899]
[1743268678268,0.00833936,1800.6,1800.1,3.2078]
[1743268678471,0.00833936,1800.6,1800.5,3.2078]
[1743268678472,3.21613936,1800.6,1800.5,3.2078]
[1743268678669,3.2078,1801.0,1800.5,3.2078]
[1743268678876,4.03983007,1802.1,1800.9,3.2078]
[1743268678877,14.9225,1801.4,1800.9,3.2078]
[1743268679069,3.2078,1801.4,1801.2,3.2078]
[1743268679279,3.2078,1801.6,1801.3,3.23221798]
[1743268679464,11.7147,1801.8,1801.3,0.02441798]
[1743268679465,3.2078,1801.4,1801.3,0.02441798]
[1743268679778,3.2078,1801.4,1801.3,6.58166465]
[1743268679779,1.11066,1801.4,1801.3,6.58166465]
[1743268679975,3.2078,1801.6,1801.3,6.58166465]
[1743268680167,0.00833936,1801.5,1801.3,0.02441798]
[1743268680362,0.49733721,1801.4,1801.3,9.76504667]
[1743268680564,0.49733721,1801.4,1801.2,3.21613936]
[1743268680768,3.2078,1801.3,1801.2,0.00833936]
[1743268680967,0.49733721,1801.4,1801.2,0.00833936]
[1743268681171,4.31853,1801.3,1801.2,9.36e-06]
[1743268681373,1.11115,1800.7,1800.2,3.2078]
[1743268681575,1.11115,1800.7,1800.5,3.2078]
[1743268681576,3.2078,1800.7,1800.5,3.2078]
[1743268681773,3.2078,1800.7,1800.5,6.55724667]
[1743268681964,3.2078,1801.2,1800.6,6.55724667]
[1743268682172,2.78488936,1801.5,1800.7,51.32]
[1743268682173,3.2078,1801.4,1800.7,51.32]
[1743268682475,3.58253286,1801.8,1801.2,3.2078]
[1743268682669,8.07229605,1802.0,1801.9,1.11036]
[1743268682870,10.14459444,1802.2,1802.1,1.11023]
[1743268683077,15.1810904,1802.9,1802.1,5.7078]
[1743268683276,15.1810904,1802.9,1802.3,3.2078]
[1743268683277,11.9732904,1802.9,1802.3,3.2078]
[1743268683474,3.2078,1802.8,1802.1,10.39478825]
[1743268683677,0.00833936,1802.7,1802.6,1.10989]
[1743268683876,0.00833936,1802.7,1802.6,11.06989]
[1743268684183,15.37249636,1803.3,1803.0,1.10968]
[1743268684481,12.22399139,1803.3,1803.0,51.32]
[1743268685068,12.22399139,1803.3,1803.0,53.82]
[1743268685268,12.23233075,1803.3,1803.0,53.82]
[1743268685681,12.23233075,1803.3,1803.1,7.29958088]
[1743268685883,12.23233075,1803.3,1803.2,11.03956]
[1743268686180,15.44013075,1803.3,1803.0,51.32]
[1743268686382,4.31742,1803.1,1803.0,51.32]
[1743268686684,12.23233075,1803.3,1803.0,51.32]
[1743268687080,12.23233075,1803.3,1803.0,53.82]
[1743268687383,3.2078,1803.2,1803.0,51.32]
[1743268687876,3.2078,1803.2,1803.1,1.10962]
[1743268688080,0.00833936,1803.3,1803.0,53.82]
[1743268688280,3.2078,1803.2,1803.0,51.32]
[1743268688682,1.10983,1802.8,1802.4,0.5552]
[1743268688880,3.2078,1802.7,1802.6,1.10993]
[1743268689183,3.2078,1802.7,1802.5,18.13301048]
[1743268689382,3.2078,1802.7,1802.3,0.56353936]
[1743268689682,5.98279,1802.5,1801.9,0.01]
[1743268689885,2.77463,1802.8,1801.9,0.01]
[1743268689886,11.8383,1802.4,1801.9,0.01]
[1743268690081,3.2078,1802.1,1801.9,0.01]
[1743268690383,3.2078,1802.7,1802.0,7.27510748]
[1743268690582,3.2078,1802.3,1801.9,0.01]
[1743268690781,3.2078,1802.3,1802.1,1.1102]
[1743268690985,0.00833936,1802.5,1802.4,1.11005]
[1743268691277,0.00833936,1802.5,1802.3,9.848]
[1743268691483,0.00833936,1802.5,1802.4,1.11005]
[1743268691779,3.2078,1802.5,1802.4,18.67781793]
[1743268691979,3.2078,1803.0,1802.7,1.10983]
[1743268692174,10.14506,1803.5,1802.8,11.5033]
[1743268692175,11.4601,1803.4,1802.8,11.5033]
[1743268692383,3.2078,1803.3,1802.9,9.793]
[1743268692578,3.2078,1803.1,1803.0,12.61295]
[1743268692782,3.2078,1803.1,1803.0,11.5033]
[1743268693078,0.00833936,1803.3,1803.2,1.10956]
[1743268693483,0.00833936,1803.3,1803.0,11.5033]
[1743268693888,0.00833936,1803.3,1803.2,1.10956]
[1743268694190,3.21613936,1803.3,1803.2,1.10956]
[1743268694390,0.00833936,1803.3,1803.2,62.12068206]
[1743268695088,0.00833936,1803.3,1803.2,54.87356]
[1743268695280,3.2078,1804.0,1803.2,61.9477845]
[1743268695479,3.2078,1804.0,1803.4,2.77359]
[1743268695679,3.2078,1804.4,1803.5,12.8868]
[1743268695882,3.2078,1804.5,1803.6,11.6748]
[1743268696080,3.2078,1804.5,1803.7,0.5544]
[1743268696291,3.2078,1804.5,1803.7,10.9225746]
[1743268696478,3.21322671,1804.3,1804.0,1.10901]
[1743268696682,0.00542671,1804.3,1804.1,10.76895]
[1743268696887,0.00542671,1804.3,1804.2,12.75504]
[1743268697088,0.00542671,1804.3,1804.2,14.1461]
[1743268697291,0.00542671,1804.3,1804.2,15.25504]
[1743268697788,0.00542671,1804.3,1804.2,22.32195333]
[1743268697984,3.2078,1805.1,1804.4,2.77205]
[1743268698187,3.2078,1805.1,1805.0,1.10845]
[1743268698386,3.2078,1805.1,1805.0,51.249]
[1743268698582,4.31619,1805.1,1805.0,51.249]
[1743268698885,3.2078,1805.1,1804.5,21.2531]
[1743268699091,4.31649,1804.6,1804.5,21.2531]
[1743268699590,3.2078,1804.6,1803.9,1.66348]
[1743268699795,1.10876,1804.5,1804.4,0.00831601]
[1743268699997,16.21116,1804.5,1804.4,0.00831601]
[1743268700196,16.21116,1804.5,1804.4,6.01e-06]
[1743268700392,18.71116,1804.5,1804.4,6.01e-06]
[1743268700587,1.109,1804.1,1804.0,51.249]
[1743268700892,1.10925,1803.7,1803.6,11.5395]
[1743268701082,1.10925,1803.7,1803.3,51.236]
[1743268701083,3.2078,1803.7,1803.4,12.64891]
[1743268701282,3.2078,1803.7,1802.8,5.98223]
[1743268701283,3.2078,1803.5,1802.4,0.41758168]
[1743268701483,3.2078,1802.6,1802.5,11.5395]
[1743268701681,3.2078,1804.0,1803.3,2.77366]
[1743268701882,3.2078,1804.2,1803.4,72.4085]
[1743268702184,1.10931,1803.6,1803.4,70.12563643]
[1743268702390,1.10946,1803.4,1802.9,7.35013643]
[1743268702589,2.78110601,1804.0,1803.0,11.5395]
[1743268702590,1.1095,1803.3,1803.0,11.5395]
[1743268702784,3.2078,1803.3,1803.0,11.5395]
[1743268703000,3.2078,1803.1,1802.8,60.855]
[1743268703291,3.2078,1803.4,1803.0,0.00831601]
[1743268703592,1.10962,1803.1,1803.0,0.00831601]
[1743268703985,3.2078,1803.7,1803.0,2.50831601]
[1743268704286,3.2078,1803.7,1803.1,3.2078]
[1743268704493,14.5411,1803.9,1803.4,3.2078]
[1743268704684,4.31721,1803.5,1803.1,4.31738]
[1743268704884,1.10961,1803.2,1803.0,0.00831601]
[1743268705084,3.2078,1803.3,1803.0,0.00831601]
[1743268705695,4.31731,1803.3,1803.0,1.11794601]
[1743268705895,4.31731,1803.3,1803.1,11.5467]
[1743268706092,3.2078,1803.5,1803.2,1.10956]
[1743268706292,0.00831601,1804.0,1803.9,1.10913]
[1743268706595,0.00831601,1804.0,1803.9,6.81693]
[1743268707195,3.2078,1804.4,1804.2,1.10892]
[1743268707399,4.31647,1804.7,1804.4,1.1088]
[1743268707697,4.31647,1804.7,1804.3,10.56983]
[1743268707892,1.1087,1804.6,1804.4,11.5467]
[1743268708090,11.0659,1804.8,1804.4,62.7847]
[1743268708394,3.2078,1804.7,1804.4,51.238]
[1743268708691,4.31656,1804.5,1804.4,51.22968399]
[1743268708895,1.10882,1804.4,1804.3,0.00831601]
[1743268709095,12.26572,1804.4,1804.3,0.00831601]
[1743268710091,11.1569,1804.4,1804.3,0.00831601]
[1743268710395,3.2078,1804.9,1804.3,2.50831601]
[1743268710588,3.2078,1804.9,1804.4,21.1898]
[1743268710789,3.2078,1804.6,1804.4,9.356]
[1743268710991,12.26566,1804.5,1804.4,9.356]
[1743268711195,1.10882,1804.4,1804.3,0.00831601]
[1743268711394,1.109,1804.1,1804.0,9.331]
[1743268711594,3.2078,1804.4,1804.0,9.331]
[1743268711595,1.10896,1804.2,1804.0,9.331]
[1743268711898,3.2078,1804.4,1804.0,9.331]
[1743268712092,1.109,1804.1,1804.0,9.331]
[1743268712285,3.2078,1804.2,1804.0,9.331]
[1743268712486,4.31678,1804.2,1804.0,9.331]
[1743268712697,3.2078,1804.2,1804.0,9.331]
[1743268712895,1.109,1804.1,1804.0,9.331]
[1743268713196,1.10897,1804.2,1804.0,9.331]
[1743268713503,0.00831601,1804.5,1804.1,11.8193]
[1743268713693,1.10894,1804.2,1804.1,11.8193]
[1743268713894,1.10906,1804.0,1803.9,0.00831601]
[1743268714197,4.31686,1804.0,1803.9,0.00831601]
[1743268716295,1.10949,1803.3,1803.2,62.8142]
[1743268716504,1.10956,1803.2,1803.1,51.227]
[1743268716701,1.10976,1802.9,1802.7,9.137]
[1743268717000,1.10971,1803.0,1802.7,10.24685]
[1743268717198,4.31751,1803.0,1802.8,11.5872]
[1743268717394,1.10972,1803.0,1802.8,11.5872]
[1743268717597,1.10974,1802.9,1802.8,11.5872]
[1743268717896,0.00831601,1803.1,1802.8,11.5872]
[1743268718093,3.2078,1803.6,1802.9,3.2078]
[1743268718291,1.10928,1803.7,1803.3,3.2078]
[1743268718488,3.2078,1803.8,1803.5,1.10937]
[1743268718489,1.1092,1803.8,1803.5,1.10937]
[1743268718693,3.2078,1804.0,1803.4,71.7613]
[1743268718694,1.10925,1803.7,1803.6,11.4543]
[1743268718989,1.10937,1803.5,1803.4,60.307]
[1743268719399,1.10937,1803.5,1803.4,51.234]
[1743268719600,3.2078,1803.5,1803.3,0.00831601]
[1743268719793,3.2078,1803.5,1801.9,0.01]
[1743268719794,9.47185323,1803.4,1801.9,0.01]
[1743268719998,3.2078,1802.8,1802.0,11.4543]
[1743268720194,3.2078,1803.0,1802.4,7.28558722]
[1743268720395,3.2078,1803.0,1802.5,21.75838]
[1743268720602,3.2078,1802.6,1802.5,20.6483]
[1743268720894,3.2078,1802.6,1802.0,51.234]
[1743268720895,3.2078,1802.6,1802.4,1.11013]
[1743268721098,3.2078,1802.6,1802.5,11.9183]
[1743268721298,4.31808,1802.2,1802.1,7.04689097]
[1743268721499,1.11041,1802.0,1801.9,0.01]
[1743268721696,3.2078,1802.2,1801.9,0.01]
[1743268721899,3.2078,1802.0,1801.9,0.01]
[1743268722701,4.31821,1802.0,1801.9,0.01]
[1743268722896,3.2078,1802.0,1801.9,0.01]
[1743268723101,4.31821,1802.0,1801.9,0.01]
[1743268723704,1.11047,1801.9,1801.8,0.00831601]
[1743268723902,12.26497,1801.9,1801.8,0.00831601]
[1743268724215,14.76497,1801.9,1801.8,0.00831601]
[1743268724515,1.11096,1801.1,1800.7,52.36416]
[1743268724703,3.2078,1800.8,1800.7,52.36421]
[1743268724905,3.2078,1800.8,1800.7,51.253]
[1743268725105,1.11095,1801.2,1800.8,1.11111]
[1743268725305,3.2078,1800.9,1800.8,1.11111]
[1743268725608,3.2078,1800.9,1800.8,0.00831601]
[1743268726109,3.2078,1800.9,1800.8,1.11946601]
[1743268726313,3.2078,1800.9,1800.8,12.56266601]
[1743268726605,0.00831601,1801.2,1800.8,12.56266601]
[1743268726606,3.2078,1801.1,1801.0,1.11102]
[1743268726805,3.2078,1801.9,1801.5,1.11071]
[1743268727009,15.1934,1801.9,1801.5,1.11067]
[1743268727206,3.2078,1801.6,1801.5,1.11067]
[1743268727404,3.2078,1801.6,1801.2,3.2078]
[1743268727605,3.2078,1801.3,1801.2,1.1109]
[1743268728108,0.00831601,1801.4,1801.3,1.11084]
[1743268728312,6.01e-06,1801.4,1801.3,4.31864]
[1743268728612,4.31818,1802.1,1801.4,7.11528535]
[1743268728907,3.2078,1802.2,1801.7,3.2078]
[1743268729105,3.2078,1802.2,1801.9,1.11044]
[1743268729106,4.31811,1802.2,1801.9,1.11044]
[1743268729306,9.29901493,1802.3,1802.0,1.1104]
[1743268729501,3.2078,1802.1,1802.0,0.01478731]
[1743268729906,4.31814,1802.1,1802.0,0.01478731]
[1743268730208,0.00831601,1802.2,1802.0,1.12518731]
[1743268730409,0.00831601,1802.2,1802.1,0.01478731]
[1743268730603,0.00831601,1802.2,1802.1,1.12512731]
[1743268730905,0.00831601,1802.2,1802.1,1.13737903]
[1743268731110,0.00831601,1802.2,1802.1,0.02703903]
[1743268731311,0.00831601,1802.2,1802.1,1.13737903]
[1743268731905,14.7283,1802.7,1802.1,2.52703903]
[1743268732105,1.11026,1802.3,1802.1,7.1142776]
[1743268732300,3.2078,1802.4,1802.1,0.02703903]
[1743268732505,1.11022,1802.3,1802.2,0.03929075]
[1743268732905,3.2078,1802.4,1802.2,0.03929075]
[1743268733110,4.32632601,1802.4,1802.2,0.03929075]
[1743268733413,4.32627601,1802.4,1802.2,1.14957075]
[1743268733615,3.21611601,1802.4,1802.1,1.11031]
[1743268733913,4.32632601,1802.4,1802.3,0.01211254]
[1743268734821,0.00831601,1802.4,1802.3,1.12233254]
[1743268735311,3.21611601,1802.4,1802.3,1.12233254]
[1743268735705,0.00831601,1802.4,1802.3,1.13450109]
[1743268736108,0.00831601,1802.4,1802.3,0.02428109]
[1743268736109,3.21611601,1802.4,1802.3,0.02428109]
[1743268736512,1.11847601,1802.4,1802.3,0.02428109]
[1743268736706,4.32627601,1802.4,1802.3,0.03643621]
[1743268736906,4.32627601,1802.4,1802.3,1.14665621]
[1743268736907,0.00831601,1802.4,1802.3,1.14665621]
[1743268737108,3.21611601,1802.4,1802.3,1.14665621]
[1743268737303,3.21611601,1802.4,1802.3,0.03643621]
[1743268737513,4.32627601,1802.4,1802.3,0.03643621]
[1743268737716,0.00831601,1802.4,1802.3,1.14665621]
[1743268737910,13.42634094,1803.6,1802.3,64.10889212]
[1743268738110,3.2078,1803.4,1802.7,3.2078]
[1743268738316,3.2078,1803.4,1802.3,71.39029212]
[1743268738317,1.10973,1803.1,1803.0,0.03909455]
[1743268738813,3.2078,1803.2,1803.1,1.10973]
[1743268739017,3.2078,1803.4,1803.0,0.03909455]
[1743268739226,3.2078,1803.1,1803.0,0.03909455]
[1743268739521,4.27843545,1803.1,1803.0,0.01]
[1743268739719,3.2078,1803.3,1803.2,1.10967]
[1743268739918,1.10973,1803.1,1803.0,0.01]
[1743268740413,3.2078,1803.3,1803.0,0.01]
[1743268740616,4.31753,1803.1,1803.0,0.01]
[1743268740817,15.2379,1803.4,1803.0,0.01]
[1743268741014,3.2078,1803.3,1803.1,1.10967]
[1743268741208,3.2078,1803.2,1803.1,8.58]
[1743268741413,1.10973,1803.1,1803.0,0.01]
[1743268741608,3.2078,1803.2,1803.0,0.01]
[1743268741811,3.2078,1803.4,1803.0,3.2178]
[1743268742016,3.2078,1803.4,1803.3,1.10961]
[1743268742211,3.2078,1803.4,1803.3,1.10956]
[1743268742807,3.2078,1803.4,1803.3,1.10961]
[1743268743412,1.10948,1803.5,1803.3,1.10957]
[1743268743608,3.2078,1803.6,1803.2,8.577]
[1743268743609,4.31726,1803.6,1803.2,8.577]
[1743268743813,3.2078,1803.6,1803.4,1.10954]
[1743268744014,4.31725,1803.6,1803.2,19.7685]
[1743268744216,4.31722,1803.6,1803.2,19.7685]
[1743268744414,3.2078,1803.4,1803.3,1.10961]
[1743268744614,3.2078,1803.7,1803.6,1.10942]
[1743268745116,6.1769159,1803.9,1803.8,1.1093]
[1743268745617,6.1769159,1803.9,1803.8,1.13357998]
[1743268745815,6.1769159,1803.9,1803.8,3.63357998]
[1743268746221,4.53394792,1803.9,1803.8,3.63357998]
[1743268746416,3.27255792,1803.9,1803.8,10.69198055]
[1743268746612,2.02820792,1803.9,1803.8,10.69198055]
[1743268747020,2.02820792,1803.9,1803.8,1.1093]
[1743268747220,2.02820792,1803.9,1803.8,1.18512946]
[1743268747428,3.2078,1804.0,1803.8,1.18512946]
[1743268747429,4.31699,1804.0,1803.8,1.18512946]
[1743268747720,15.50008,1804.0,1803.8,1.18507946]
[1743268747925,14.3909,1804.0,1803.9,1.10924]
[1743268748128,14.3909,1804.0,1803.9,1.18506946]
[1743268748419,3.2078,1804.4,1803.9,0.07582946]
[1743268748621,11.9688,1804.5,1804.2,1.10901]
[1743268748826,3.2078,1804.3,1804.2,1.10901]
[1743268749013,3.2078,1804.3,1804.0,11.96181601]
[1743268749213,3.2078,1804.7,1804.5,1.10885]
[1743268749424,3.2078,1804.6,1804.5,1.10885]
[1743268750021,11.39655493,1804.8,1804.2,2.77255]
[1743268750224,11.39655493,1804.8,1804.5,0.07582946]
[1743268750424,11.39655493,1804.8,1804.7,1.10874]
[1743268750626,11.39655493,1804.8,1804.6,11.9535]
[1743268750830,3.2078,1804.8,1804.7,1.10874]
[1743268751021,3.2078,1804.8,1804.6,21.34727]
[1743268751226,3.2078,1804.8,1804.7,13.13806946]
[1743268751726,3.2078,1804.8,1804.7,12.02932946]
[1743268751925,3.2078,1804.8,1804.7,13.13806946]
[1743268752122,3.2078,1804.8,1804.7,0.07582946]
[1743268752318,3.2078,1804.8,1804.7,1.18456946]
[1743268752524,3.2078,1804.8,1804.7,12.22426946]
[1743268752922,8.18875493,1805.1,1804.7,78.48456555]
[1743268753224,8.18875493,1805.1,1805.0,4.31636]
[1743268753425,7.04044493,1805.1,1805.0,4.31636]
[1743268753623,7.04044493,1805.1,1805.0,11.47182694]
[1743268753927,8.24273769,1805.6,1805.0,26.67429694]
[1743268754126,8.24273769,1805.6,1805.5,1.10825]
[1743268754426,8.24273769,1805.6,1805.5,0.07582946]
[1743268754626,11.45053769,1805.6,1805.5,1.18407946]
[1743268755029,8.24273769,1805.6,1805.5,1.18407946]
[1743268755423,8.24273769,1805.6,1805.5,62.18419217]
[1743268755823,12.26240785,1806.2,1806.1,1.10788]
[1743268756125,12.26240785,1806.2,1806.1,8.209]
[1743268756525,12.26240785,1806.2,1806.1,9.39270946]
[1743268757627,12.26240785,1806.2,1806.1,11.89270946]
[1743268757933,3.2078,1806.6,1806.1,17.83411495]
[1743268758132,3.2078,1806.8,1806.2,2.76957]
[1743268758331,3.2078,1806.8,1806.3,53.97227]
[1743268758533,11.2405,1806.9,1806.5,0.07582946]
[1743268758832,4.31518,1807.0,1806.5,0.07582946]
[1743268758833,1.10758,1806.6,1806.5,0.07582946]
[1743268759133,1.10758,1806.6,1806.2,0.00831601]
[1743268759134,3.2078,1806.6,1806.2,0.00831601]
[1743268759345,3.2078,1807.0,1806.4,3.2078]
[1743268759627,3.2078,1807.0,1806.8,1.10744]
[1743268759827,3.2078,1807.0,1806.9,1.10739]
[1743268760027,3.2078,1807.3,1806.9,11.6477]
[1743268760228,3.2078,1807.3,1807.1,1.10723]
[1743268760427,3.2078,1807.3,1806.9,11.6477]
[1743268760828,3.2078,1807.3,1807.1,1.10723]
[1743268761029,3.2078,1807.3,1807.2,1.10721]
[1743268761232,3.2078,1807.3,1806.9,11.6477]
[1743268761432,3.2078,1807.3,1807.1,1.10724]
[1743268761633,4.31497,1807.3,1807.0,1.10729]
[1743268761830,6.8594,1807.5,1806.8,8.257]
[1743268761831,3.2078,1807.1,1806.8,8.257]
[1743268762031,3.2078,1807.2,1806.9,11.5773]
[1743268762223,3.2078,1807.2,1807.1,1.10727]
[1743268762929,3.2078,1807.2,1806.9,11.5773]
[1743268763128,3.2078,1807.0,1806.6,8.164]
[1743268763331,1.1074,1806.9,1806.4,14.7851]
[1743268763634,3.2078,1806.8,1806.7,1.10752]
[1743268763834,4.31528,1806.8,1806.5,8.162]
[1743268764030,3.2078,1806.6,1806.5,8.162]
[1743268764236,3.2078,1806.8,1806.7,1.10752]
[1743268764534,3.2078,1807.2,1806.5,29.89057114]
[1743268764729,3.2078,1807.0,1806.9,1.10739]
[1743268765327,3.2078,1807.0,1806.8,1.10742]
[1743268765527,3.2078,1807.0,1806.7,1.10749]
[1743268765736,3.2078,1807.0,1806.5,20.0074]
[1743268765929,1.10742,1806.9,1806.7,1.10749]
[1743268766130,1.10741,1806.9,1806.6,1.10755]
[1743268766428,3.2078,1806.8,1806.5,9.26962]
[1743268766629,3.2078,1806.8,1806.3,51.203]
[1743268766630,3.2078,1806.6,1806.3,59.268]
[1743268766828,3.2078,1806.6,1806.5,1.10764]
[1743268767236,3.13197054,1806.6,1806.5,1.10764]
[1743268767444,3.13197054,1806.6,1806.5,12.96984]
[1743268768838,1.10764,1806.5,1806.4,8.004]
[1743268769133,1.10798,1806.0,1805.8,8.0]
[1743268769330,3.2078,1805.9,1805.8,9.10805]
[1743268769532,3.2078,1805.9,1805.8,9.10807]
[1743268770439,3.2078,1805.9,1805.8,8.0]
[1743268770640,3.2078,1805.9,1805.8,9.10807]